fUSD/lending_fUSD_20240422
["ID","MTS","AMOUNT","RATE_DAILY","PERIOD"]
[323218187,1713817937797,-3772.2,0.00015068,2]
[323218188,1713817937807,-3845.3,0.00015068,2]
[323218189,1713817937817,-500.0,0.00015068,2]
[323218190,1713817937827,-2377.01,0.00015068,2]
[323218191,1713817937837,-3089.82,0.00015068,2]
[323218192,1713817937847,-543.40963536,0.00015068,2]
[323218193,1713817937857,-500.0,0.00015068,2]
[323218194,1713817937868,-500.0,0.00015068,2]
[323218195,1713817937882,-11616.79,0.00015068,2]
[323218196,1713817937897,-500.0,0.00015068,2]
[323218197,1713817937932,-500.0,0.00015068,2]
[323218198,1713817937943,-1036.73,0.00015068,2]
[323218199,1713817937953,-894.91,0.00015068,2]
[323218200,1713817937968,-519.63,0.00015068,2]
[323218201,1713817937978,-500.0,0.00015068,2]
[323218202,1713817937988,-500.0,0.00015068,2]
[323218203,1713817937998,-3283.29,0.00015068,2]
[323218204,1713817938007,-574.54,0.00015068,2]
[323218205,1713817938019,-6142.2,0.00015068,2]
[323218206,1713817938028,-500.0,0.00015068,2]
[323218207,1713817938039,-500.0,0.00015068,2]
[323218208,1713817938048,-7530.97,0.00015068,2]
[323218209,1713817938058,-3119.61,0.00015068,2]
[323218210,1713817938067,-1052.32,0.00015068,2]
[323218211,1713817938077,-8074.97,0.00015068,2]
[323218212,1713817938086,-1615.52,0.00015068,2]
[323218213,1713817938095,-500.0,0.00015068,2]
[323218214,1713817938106,-500.0,0.00015068,2]
[323218215,1713817938115,-1654.01,0.00015068,2]
[323218216,1713817938124,-2299.35,0.00015068,2]
[323218217,1713817938138,-4170.98,0.00015068,2]
[323218218,1713817938149,-500.0,0.00015068,2]
[323218219,1713817938168,-841.29,0.00015068,2]
[323218220,1713817938178,-9718.3,0.00015068,2]
[323218221,1713817938188,-1294.69,0.00015068,2]
[323218222,1713817938198,-580.64,0.00015068,2]
[323218223,1713817938208,-500.0,0.00015068,2]
[323218224,1713817938218,-502.125069,0.00015068,2]
[323218225,1713817938228,-2541.75,0.00015068,2]
[323218226,1713817938238,-501.69449144,0.00015068,2]
[323218227,1713817938247,-500.0,0.00015068,2]
[323218228,1713817938257,-500.0,0.00015068,2]
[323218229,1713817938269,-2729.9,0.00015068,2]
[323218230,1713817938281,-555.29,0.00015068,2]
[323218231,1713817938292,-2620.59,0.00015068,2]
[323218232,1713817938301,-1646.2,0.00015068,2]
[323218233,1713817938311,-3612.79,0.00015068,2]
[323218234,1713817938321,-3159.44,0.00015068,2]
[323218235,1713817938330,-500.0,0.00015068,2]
[323218236,1713817938339,-5252.04,0.00015068,2]
[323218237,1713817938349,-500.0,0.00015068,2]
[323218238,1713817938359,-500.0,0.00015068,2]
[323218239,1713817938369,-500.0,0.00015068,2]
[323218240,1713817938378,-500.0,0.00015068,2]
[323218241,1713817938387,-500.0,0.00015068,2]
[323218242,1713817938396,-1523.59,0.00015068,2]
[323218243,1713817938406,-608.44,0.00015068,2]
[323218244,1713817938415,-13095.85,0.00015068,2]
[323218245,1713817938424,-5833.37,0.00015068,2]
[323218246,1713817938434,-6897.16,0.00015068,2]
[323218247,1713817938445,-6152.13,0.00015068,2]
[323218248,1713817938454,-3299.3,0.00015068,2]
[323218249,1713817938463,-1238.36,0.00015068,2]
[323218250,1713817938473,-13435.6,0.00015068,2]
[323218251,1713817938482,-500.70165378,0.00015068,2]
[323218252,1713817938491,-500.0,0.00015068,2]
[323218253,1713817938501,-3819.44,0.00015068,2]
[323218254,1713817938515,-943.08,0.00015068,2]
[323218255,1713817938524,-780.85,0.00015068,2]
[323218256,1713817938534,-500.0,0.00015068,2]
[323218257,1713817938543,-500.0,0.00015068,2]
[323218258,1713817938552,-500.0,0.00015068,2]
[323218259,1713817938562,-500.20555739,0.00015068,2]
[323218260,1713817938571,-500.0,0.00015068,2]
[323218261,1713817938580,-1406.96,0.00015068,2]
[323218262,1713817938590,-769.83,0.00015068,2]
[323218263,1713817938599,-500.0,0.00015068,2]
[323218264,1713817938609,-722.61,0.00015068,2]
[323218265,1713817938619,-930.5,0.00015068,2]
[323218266,1713817938628,-500.0,0.00015068,2]
[323218267,1713817938638,-2367.11,0.00015068,2]
[323218268,1713817938647,-7256.26,0.00015068,2]
[323218269,1713817938657,-1025.63,0.00015068,2]
[323218270,1713817938666,-501.8391248,0.00015068,2]
[323218271,1713817938676,-10754.04,0.00015068,2]
[323218272,1713817938685,-500.0,0.00015068,2]
[323218273,1713817938695,-634.73,0.00015068,2]
[323218274,1713817938705,-500.0,0.00015068,2]
[323218275,1713817938714,-500.0,0.00015068,2]
[323218276,1713817938724,-2911.37,0.00015068,2]
[323218277,1713817938734,-530.36,0.00015068,2]
[323218278,1713817938743,-6189.49,0.00015068,2]
[323218279,1713817938753,-500.0,0.00015068,2]
[323218280,1713817938767,-500.0,0.00015068,2]
[323218281,1713817938780,-943.08,0.00015068,2]
[323218282,1713817938791,-4556.59,0.00015068,2]
[323218283,1713817938802,-1833.33,0.00015068,2]
[323218284,1713817938813,-523.92,0.00015068,2]
[323218285,1713817938823,-1487.75,0.00015068,2]
[323218286,1713817938834,-664.1,0.00015068,2]
[323218287,1713817938846,-1392.71,0.00015068,2]
[323218288,1713817938857,-500.0,0.00015068,2]
[323218289,1713817938867,-4694.74,0.00015068,2]
[323218290,1713817938880,-1874.89,0.00015068,2]
[323218291,1713817938891,-500.0,0.00015068,2]
[323218292,1713817939183,-1392.18,0.00015068,2]
[323218293,1713817939231,-819.7,0.00015068,2]
[323218294,1713817939241,-3597.55,0.00015068,2]
[323218295,1713817939250,-806.58,0.00015068,2]
[323218296,1713817939260,-3150.13,0.00015068,2]
[323218297,1713817939273,-1514.8,0.00015068,2]
[323218298,1713817939283,-500.0,0.00015068,2]
[323218299,1713817939293,-702.44,0.00015068,2]
[323218300,1713817939302,-1715.22,0.00015068,2]
[323218301,1713817939311,-1604.37,0.00015068,2]
[323218302,1713817939320,-1853.0,0.00015068,2]
[323218303,1713817939329,-500.0,0.00015068,2]
[323218304,1713817939338,-1000.0,0.00015068,2]
[323218305,1713817939347,-1000.0,0.00015068,2]
[323218306,1713817939356,-1000.0,0.00015068,2]
[323218307,1713817939366,-1000.0,0.00015068,2]
[323218308,1713817939375,-1000.0,0.00015068,2]
[323218309,1713817939385,-1000.0,0.00015068,2]
[323218310,1713817939394,-1000.0,0.00015068,2]
[323218311,1713817939404,-1000.0,0.00015068,2]
[323218312,1713817939413,-1000.0,0.00015068,2]
[323218313,1713817939422,-1000.0,0.00015068,2]
[323218314,1713817939432,-1000.0,0.00015068,2]
[323218315,1713817939441,-1000.0,0.00015068,2]
[323218316,1713817939451,-1000.0,0.00015068,2]
[323218317,1713817939460,-774.0,0.00015068,2]
[323218318,1713817939469,-1000.0,0.00015068,2]
[323218319,1713817939479,-1000.0,0.00015068,2]
[323218320,1713817939489,-300.0,0.00015068,2]
[323218321,1713817939499,-1000.0,0.00015068,2]
[323218322,1713817939509,-1000.0,0.00015068,2]
[323218323,1713817939523,-1000.0,0.00015068,2]
[323218324,1713817939533,-1000.0,0.00015068,2]
[323218325,1713817939543,-1000.0,0.00015068,2]
[323218326,1713817939553,-1000.0,0.00015068,2]
[323218327,1713817939563,-1000.0,0.00015068,2]
[323218328,1713817939572,-1000.0,0.00015068,2]
[323218329,1713817939582,-1000.0,0.00015068,2]
[323218330,1713817939592,-1000.0,0.00015068,2]
[323218331,1713817939602,-1000.0,0.00015068,2]
[323218332,1713817939611,-1000.0,0.00015068,2]
[323218333,1713817939621,-1000.0,0.00015068,2]
[323218334,1713817939633,-1000.0,0.00015068,2]
[323218335,1713817939642,-1000.0,0.00015068,2]
[323218336,1713817939652,-1000.0,0.00015068,2]
[323218337,1713817939661,-1000.0,0.00015068,2]
[323218338,1713817939670,-1000.0,0.00015079,2]
[323218339,1713817939680,-1164.75,0.000151,3]
[323218340,1713817939689,-985.66,0.000151,3]
[323218341,1713817939698,-1138.5,0.000152,3]
[323218342,1713817939709,-422.80493,0.00015208,2]
[323218343,1713817939718,-170.174099,0.00015208,2]
[323218344,1713817939727,-266.086607,0.00015208,2]
[323218345,1713817939737,-235.422269,0.00015208,2]
[323218346,1713817939747,-295.963452,0.00015208,2]
[323218347,1713817939757,-173.624432,0.00015208,2]
[323218348,1713817939770,-235.641463,0.00015208,2]
[323218349,1713817939780,-179.057739,0.00015208,2]
[323218350,1713817939789,-160.243164,0.00015208,2]
[323218351,1713817939798,-160.243164,0.00015209,2]
[323218352,1713817939808,-184.475959,0.00015209,2]
[323218353,1713817939817,-191.458689,0.00015209,2]
[323218354,1713817939827,-190.248848,0.00015209,2]
[323218355,1713817939837,-150.260719,0.00015209,2]
[323218356,1713817939846,-1001.162306,0.00015209,2]
[323218357,1713817939856,-333.720769,0.00015209,2]
[323218358,1713817939867,-1354.090196,0.00015209,2]
[323218359,1713817939885,-193.530824,0.00015209,2]
[323218360,1713817939895,-1060.271034,0.00015209,2]
[323218361,1713817939905,-375.581729,0.00015209,2]
[323218362,1713817939915,-242.262789,0.00015209,2]
[323218363,1713817939925,-211.520006,0.00015209,2]
[323218364,1713817939935,-250.38782,0.00015209,2]
[323218365,1713817939944,-4265.685689,0.00015209,2]
[323218366,1713817939954,-921.40352,0.00015209,2]
[323218367,1713817939966,-769.489311,0.00015209,2]
[323218368,1713817939975,-1727.953782,0.00015209,2]
[323218369,1713817939986,-1000.0,0.00015221,2]
[323218370,1713817939995,-1001.68271165,0.00015267,2]
[323218371,1713817940004,-1125.6,0.000153,3]
[323218372,1713817940015,-1056.6,0.000153,3]
[323218373,1713817940025,-3333.0,0.00015323,2]
[323218374,1713817940034,-255312.31705083,0.00015339,2]
[323218375,1713817940044,-500.0,0.00015342,2]
[323218376,1713817940054,-1058.97,0.00015342,2]
[323218377,1713817940064,-502.62800812,0.00015342,2]
[323218378,1713817940074,-621.47875287,0.00015342,2]
[323218379,1713817940083,-555.39292818,0.00015342,2]
[323218380,1713817940093,-500.0,0.00015342,2]
[323218381,1713817940103,-503.51045738,0.00015342,2]
[323218382,1713817940113,-500.0,0.00015342,2]
[323218383,1713817940123,-613.72,0.00015342,2]
[323218384,1713817940133,-500.0,0.00015342,2]
[323218385,1713817940143,-540.41,0.00015342,2]
[323218386,1713817940152,-500.0,0.00015342,2]
[323218387,1713817940162,-500.0,0.00015342,2]
[323218388,1713817940172,-488.30863205,0.00015342,2]
[323218389,1713817940181,-1669.03,0.00015342,2]
[323218390,1713817940191,-501.3172219,0.00015342,2]
[323218391,1713817940201,-1371.14,0.00015342,2]
[323218392,1713817940210,-500.0,0.00015342,2]
[323218393,1713817940220,-500.0,0.00015342,2]
[323218394,1713817940229,-502.39846842,0.00015342,2]
[323218395,1713817940239,-776.94,0.00015342,2]
[323218396,1713817940249,-500.0,0.00015342,2]
[323218397,1713817940259,-587.95,0.00015342,2]
[323218398,1713817940271,-1126.73,0.00015342,2]
[323218399,1713817940280,-1027.81,0.00015342,2]
[323218400,1713817940289,-500.0,0.00015342,2]
[323218401,1713817940299,-895.63,0.00015342,2]
[323218402,1713817940309,-500.0,0.00015342,2]
[323218403,1713817940318,-500.0,0.00015342,2]
[323218404,1713817940328,-501.86115287,0.00015342,2]
[323218405,1713817940338,-560.73,0.00015342,2]
[323218406,1713817940347,-500.0,0.00015342,2]
[323218407,1713817940357,-500.0,0.00015342,2]
[323218408,1713817940367,-541.08,0.00015342,2]
[323218409,1713817940376,-500.0,0.00015342,2]
[323218410,1713817940386,-706.11,0.00015342,2]
[323218411,1713817940395,-629.02,0.00015342,2]
[323218412,1713817940404,-584.95,0.00015342,2]
[323218413,1713817940414,-500.0,0.00015342,2]
[323218414,1713817940424,-1117.61,0.00015342,2]
[323218415,1713817940433,-500.0,0.00015342,2]
[323218416,1713817940442,-1070.74,0.00015342,2]
[323218417,1713817940452,-500.0,0.00015342,2]
[323218418,1713817940461,-1292.86,0.00015342,2]
[323218419,1713817940471,-502.98331727,0.00015342,2]
[323218420,1713817940481,-500.0,0.00015342,2]
[323218421,1713817940490,-1409.26,0.00015342,2]
[323218422,1713817940499,-895.28,0.00015342,2]
[323218423,1713817940508,-627.63,0.00015342,2]
[323218424,1713817940518,-1508.56,0.00015342,2]
[323218425,1713817940527,-500.0,0.00015342,2]
[323218426,1713817940536,-501.6144942,0.00015342,2]
[323218427,1713817940546,-500.0,0.00015342,2]
[323218428,1713817940555,-632.96,0.00015342,2]
[323218429,1713817940564,-1031.2,0.00015342,2]
[323218430,1713817940574,-500.0,0.00015342,2]
[323218431,1713817940583,-500.0,0.00015342,2]
[323218432,1713817940593,-500.0,0.00015342,2]
[323218433,1713817940602,-556.71524246,0.00015342,2]
[323218434,1713817940611,-501.34345487,0.00015342,2]
[323218435,1713817940621,-718.9,0.00015342,2]
[323218436,1713817940631,-500.0,0.00015342,2]
[323218437,1713817940640,-969.56,0.00015342,2]
[323218438,1713817940650,-500.0,0.00015342,2]
[323218439,1713817940659,-500.0,0.00015342,2]
[323218440,1713817940669,-500.0,0.00015342,2]
[323218441,1713817940678,-500.0,0.00015342,2]
[323218442,1713817940687,-1375.45,0.00015342,2]
[323218443,1713817940696,-643.12,0.00015342,2]
[323218444,1713817940706,-1338.67,0.00015342,2]
[323218445,1713817940715,-1299.86,0.00015342,2]
[323218446,1713817940725,-1086.66,0.00015342,2]
[323218447,1713817940734,-1120.16,0.00015342,2]
[323218448,1713817940744,-960.06,0.00015342,2]
[323218449,1713817940753,-500.0,0.00015342,2]
[323218450,1713817940763,-534.21,0.00015342,2]
[323218451,1713817940774,-753.19,0.00015342,2]
[323218452,1713817940783,-500.0,0.00015342,2]
[323218453,1713817940792,-500.0,0.00015342,2]
[323218454,1713817940801,-500.0,0.00015342,2]
[323218455,1713817940810,-500.0,0.00015342,2]
[323218456,1713817940820,-811.84,0.00015342,2]
[323218457,1713817940829,-1092.53,0.00015342,2]
[323218458,1713817940838,-500.0,0.00015342,2]
[323218459,1713817940848,-546.54,0.00015342,2]
[323218460,1713817940858,-1749.53,0.00015342,2]
[323218461,1713817940867,-153.41707949,0.00015342,2]
[323218462,1713817940880,-501.77714958,0.00015342,2]
[323218463,1713817940890,-500.0,0.00015342,2]
[323218464,1713817940899,-502.34753372,0.00015342,2]
[323218465,1713817940909,-500.0,0.00015342,2]
[323218466,1713817940919,-500.0,0.00015342,2]
[323218467,1713817940929,-500.0,0.00015342,2]
[323218468,1713817940939,-1083.17,0.00015342,2]
[323218469,1713817940949,-500.0,0.00015342,2]
[323218470,1713817940960,-500.0,0.00015342,2]
[323218471,1713817940970,-500.0,0.00015342,2]
[323218472,1713817940979,-500.0,0.00015342,2]
[323218473,1713817940989,-1474.11,0.00015342,2]
[323218474,1713817940999,-1939.69,0.00015342,2]
[323218475,1713817941008,-1150.37,0.00015342,2]
[323218476,1713817941020,-500.0,0.00015342,2]
[323218477,1713817941030,-1191.57,0.00015342,2]
[323218478,1713817941039,-500.0,0.00015342,2]
[323218479,1713817941049,-500.0,0.00015342,2]
[323218480,1713817941059,-873.37,0.00015342,2]
[323218481,1713817941069,-500.0,0.00015342,2]
[323218482,1713817941078,-548.01,0.00015342,2]
[323218483,1713817941088,-1713.21,0.00015342,2]
[323218484,1713817941098,-860.95,0.00015342,2]
[323218485,1713817941108,-778.64,0.00015342,2]
[323218486,1713817941118,-566.46964244,0.00015342,2]
[323218487,1713817941127,-583.38,0.00015342,2]
[323218488,1713817941137,-983.83,0.00015342,2]
[323218489,1713817941146,-500.0,0.00015342,2]
[323218490,1713817941156,-848.86,0.00015342,2]
[323218491,1713817941166,-500.0,0.00015342,2]
[323218492,1713817941175,-1645.42,0.00015342,2]
[323218493,1713817941185,-991.23,0.00015342,2]
[323218494,1713817941195,-650.08,0.00015342,2]
[323218495,1713817941204,-919.27,0.00015342,2]
[323218496,1713817941214,-849.94,0.00015342,2]
[323218497,1713817941224,-965.68,0.00015342,2]
[323218498,1713817941233,-500.0,0.00015342,2]
[323218499,1713817941243,-648.35,0.00015342,2]
[323218500,1713817941252,-653.61,0.00015342,2]
[323218501,1713817941263,-849.99,0.00015342,2]
[323218502,1713817941273,-500.0,0.00015342,2]
[323218503,1713817941282,-872.51,0.00015342,2]
[323218504,1713817941292,-883.24,0.00015342,2]
[323218505,1713817941301,-501.9350165,0.00015342,2]
[323218506,1713817941311,-1446.77,0.00015342,2]
[323218507,1713817941320,-668.79,0.00015342,2]
[323218508,1713817941330,-500.0,0.00015342,2]
[323218509,1713817941339,-500.0,0.00015342,2]
[323218510,1713817941348,-1711.08,0.00015342,2]
[323218511,1713817941357,-500.0,0.00015342,2]
[323218512,1713817941366,-586.1,0.00015342,2]
[323218513,1713817941376,-276.28401719,0.00015342,2]
[323218514,1713817941386,-643.67,0.00015342,2]
[323218515,1713817941395,-500.0,0.00015342,2]
[323218516,1713817941404,-500.0,0.00015342,2]
[323218517,1713817941414,-503.35597589,0.00015342,2]
[323218518,1713817941423,-1611.58,0.00015342,2]
[323218519,1713817941433,-500.0,0.00015342,2]
[323218520,1713817941442,-500.0,0.00015342,2]
[323218521,1713817941451,-502.49231159,0.00015342,2]
[323218522,1713817941460,-710.31,0.00015342,2]
[323218523,1713817941470,-503.1497104,0.00015342,2]
[323218524,1713817941479,-500.0,0.00015342,2]
[323218525,1713817941488,-941.73,0.00015342,2]
[323218526,1713817941498,-500.0,0.00015342,2]
[323218527,1713817941509,-1122.42,0.00015342,2]
[323218528,1713817941520,-585.05,0.00015342,2]
[323218529,1713817941530,-500.0,0.00015342,2]
[323218530,1713817941539,-758.68,0.00015342,2]
[323218531,1713817941548,-844.75,0.00015342,2]
[323218532,1713817941559,-500.0,0.00015342,2]
[323218533,1713817941569,-500.0,0.00015342,2]
[323218534,1713817941578,-500.0,0.00015342,2]
[323218535,1713817941588,-1156.31,0.00015342,2]
[323218536,1713817941597,-905.56,0.00015342,2]
[323218537,1713817941722,-1225.61,0.00015342,2]
[323218538,1713817941731,-500.0,0.00015342,2]
[323218539,1713817941741,-762.49,0.00015342,2]
[323218540,1713817941750,-500.0,0.00015342,2]
[323218541,1713817941759,-580.72,0.00015342,2]
[323218542,1713817941770,-1207.15,0.00015342,2]
[323218543,1713817941780,-500.0,0.00015342,2]
[323218544,1713817941790,-500.0,0.00015342,2]
[323218545,1713817941800,-847.4,0.00015342,2]
[323218546,1713817941810,-500.0,0.00015342,2]
[323218547,1713817941819,-500.0,0.00015342,2]
[323218548,1713817941828,-501.82609453,0.00015342,2]
[323218549,1713817941838,-889.65,0.00015342,2]
[323218550,1713817941848,-1857.12,0.00015342,2]
[323218551,1713817941857,-502.98376797,0.00015342,2]
[323218552,1713817941867,-1458.35,0.00015342,2]
[323218553,1713817941879,-1346.71,0.00015342,2]
[323218554,1713817941888,-1384.06,0.00015342,2]
[323218555,1713817941897,-797.75,0.00015342,2]
[323218556,1713817941906,-838.1,0.00015342,2]
[323218557,1713817941916,-500.0,0.00015342,2]
[323218558,1713817941926,-666.81,0.00015342,2]
[323218559,1713817941935,-500.0,0.00015342,2]
[323218560,1713817941944,-500.0,0.00015342,2]
[323218561,1713817941955,-562.19,0.00015342,2]
[323218562,1713817941964,-515.46,0.00015342,2]
[323218563,1713817941974,-500.0,0.00015342,2]
[323218564,1713817941983,-500.0,0.00015342,2]
[323218565,1713817941992,-500.0,0.00015342,2]
[323218566,1713817942001,-500.0,0.00015342,2]
[323218567,1713817942010,-1234.42,0.00015342,2]
[323218568,1713817942021,-500.0,0.00015342,2]
[323218569,1713817942030,-1329.82,0.00015342,2]
[323218570,1713817942039,-500.0,0.00015342,2]
[323218571,1713817942049,-982.2,0.00015342,2]
[323218572,1713817942058,-500.0,0.00015342,2]
[323218573,1713817942067,-2343.61,0.00015342,2]
[323218574,1713817942077,-1458.64,0.00015342,2]
[323218575,1713817942086,-500.0,0.00015342,2]
[323218576,1713817942095,-847.85,0.00015342,2]
[323218577,1713817942105,-500.0,0.00015342,2]
[323218578,1713817942115,-1545.79,0.00015342,2]
[323218579,1713817942123,-500.0,0.00015342,2]
[323218580,1713817942133,-3597.84,0.00015342,2]
[323218581,1713817942142,-715.1,0.00015342,2]
[323218582,1713817942151,-500.0,0.00015342,2]
[323218583,1713817942161,-1733.17,0.00015342,2]
[323218584,1713817942170,-1489.81,0.00015342,2]
[323218585,1713817942179,-500.0,0.00015342,2]
[323218586,1713817942188,-1331.5,0.00015342,2]
[323218587,1713817942197,-500.0,0.00015342,2]
[323218588,1713817942206,-500.0,0.00015342,2]
[323218589,1713817942215,-1524.01,0.00015342,2]
[323218590,1713817942224,-500.0,0.00015342,2]
[323218591,1713817942234,-1445.52,0.00015342,2]
[323218592,1713817942243,-521.23,0.00015342,2]
[323218593,1713817942252,-1681.34,0.00015342,2]
[323218594,1713817942262,-500.0,0.00015342,2]
[323218595,1713817942272,-1162.45,0.00015342,2]
[323218596,1713817942281,-500.0,0.00015342,2]
[323218597,1713817942291,-1395.37,0.00015342,2]
[323218598,1713817942300,-619.96,0.00015342,2]
[323218599,1713817942309,-500.0,0.00015342,2]
[323218600,1713817942318,-255.26,0.00015342,2]
[323218601,1713817942327,-850.51,0.00015342,2]
[323218602,1713817942336,-500.0,0.00015342,2]
[323218603,1713817942345,-500.0,0.00015342,2]
[323218604,1713817942354,-651.79,0.00015342,2]
[323218605,1713817942363,-500.0,0.00015342,2]
[323218606,1713817942372,-1280.9,0.00015342,2]
[323218607,1713817942381,-500.0,0.00015342,2]
[323218608,1713817942390,-1459.47,0.00015342,2]
[323218609,1713817942400,-500.0,0.00015342,2]
[323218610,1713817942410,-534.9,0.00015342,2]
[323218611,1713817942419,-500.0,0.00015342,2]
[323218612,1713817942428,-500.0,0.00015342,2]
[323218613,1713817942437,-500.0,0.00015342,2]
[323218614,1713817942446,-538.6,0.00015342,2]
[323218615,1713817942455,-500.0,0.00015342,2]
[323218616,1713817942464,-1610.79,0.00015342,2]
[323218617,1713817942473,-500.0,0.00015342,2]
[323218618,1713817942482,-537.01,0.00015342,2]
[323218619,1713817942491,-514.88,0.00015342,2]
[323218620,1713817942500,-500.0,0.00015342,2]
[323218621,1713817942510,-1363.17,0.00015342,2]
[323218622,1713817942520,-786.16,0.00015342,2]
[323218623,1713817942529,-746.38,0.00015342,2]
[323218624,1713817942538,-788.48,0.00015342,2]
[323218625,1713817942549,-500.0,0.00015342,2]
[323218626,1713817942559,-501.53635003,0.00015342,2]
[323218627,1713817942568,-1371.5,0.00015342,2]
[323218628,1713817942578,-500.0,0.00015342,2]
[323218629,1713817942588,-572.35,0.00015342,2]
[323218630,1713817942597,-500.0,0.00015342,2]
[323218631,1713817942605,-1639.44,0.00015342,2]
[323218632,1713817942615,-1080.61,0.00015342,2]
[323218633,1713817942624,-500.0,0.00015342,2]
[323218634,1713817942633,-927.48,0.00015342,2]
[323218635,1713817942642,-500.0,0.00015342,2]
[323218636,1713817942651,-487.0,0.00015342,2]
[323218637,1713817942662,-2417.44,0.00015342,2]
[323218638,1713817942673,-1053.33,0.00015342,2]
[323218639,1713817942682,-449.96811448,0.00015342,2]
[323218640,1713817942691,-820.45,0.00015342,2]
[323218641,1713817942700,-500.0,0.00015342,2]
[323218642,1713817942709,-500.0,0.00015342,2]
[323218643,1713817942718,-503.00698286,0.00015342,2]
[323218644,1713817942728,-500.0,0.00015342,2]
[323218645,1713817942736,-500.0,0.00015342,2]
[323218646,1713817942746,-616.6,0.00015342,2]
[323218647,1713817942754,-1496.35,0.00015342,2]
[323218648,1713817942764,-500.0,0.00015342,2]
[323218649,1713817942773,-500.0,0.00015342,2]
[323218650,1713817942782,-1901.34,0.00015342,2]
[323218651,1713817942791,-1504.69,0.00015342,2]
[323218652,1713817942800,-531.85,0.00015342,2]
[323218653,1713817942810,-501.5795432,0.00015342,2]
[323218654,1713817942819,-500.0,0.00015342,2]
[323218655,1713817942829,-549.16,0.00015342,2]
[323218656,1713817942838,-1164.49,0.00015342,2]
[323218657,1713817942847,-1596.3,0.00015342,2]
[323218658,1713817942856,-1438.6,0.00015342,2]
[323218659,1713817942867,-500.0,0.00015342,2]
[323218660,1713817942877,-501.49291886,0.00015342,2]
[323218661,1713817942888,-500.0,0.00015342,2]
[323218662,1713817942898,-1493.64,0.00015342,2]
[323218663,1713817942907,-693.72,0.00015342,2]
[323218664,1713817942916,-500.0,0.00015342,2]
[323218665,1713817942925,-889.74,0.00015342,2]
[323218666,1713817942934,-500.0,0.00015342,2]
[323218667,1713817942943,-1296.17,0.00015342,2]
[323218668,1713817942954,-502.26143165,0.00015342,2]
[323218669,1713817942964,-1184.52,0.00015342,2]
[323218670,1713817942973,-1024.32,0.00015342,2]
[323218671,1713817942982,-675.02,0.00015342,2]
[323218672,1713817942990,-1243.7,0.00015342,2]
[323218673,1713817942999,-500.0,0.00015342,2]
[323218674,1713817943009,-2073.0,0.00015342,2]
[323218675,1713817943018,-1364.07,0.00015342,2]
[323218676,1713817943027,-1245.39,0.00015342,2]
[323218677,1713817943037,-500.0,0.00015342,2]
[323218678,1713817943046,-500.0,0.00015342,2]
[323218679,1713817943055,-500.0,0.00015342,2]
[323218680,1713817943065,-503.4103171,0.00015342,2]
[323218681,1713817943074,-500.0,0.00015342,2]
[323218682,1713817943083,-1343.23,0.00015342,2]
[323218683,1713817943092,-500.0,0.00015342,2]
[323218684,1713817943101,-785.15,0.00015342,2]
[323218685,1713817943110,-501.66471218,0.00015342,2]
[323218686,1713817943120,-1627.92,0.00015342,2]